[Event "7th Sharjah Masters 2024"]
[Site "Sharjah"]
[Date "2024.05.18"]
[Round "5.19"]
[White "Pranav, V."]
[Black "Yakubboev, Nodirbek"]
[Result "1-0"]
[ECO "C28"]
[WhiteElo "2587"]
[BlackElo "2665"]
[Annotator "TA"]
[PlyCount "75"]
[EventDate "2024.05.13"]
[EventType "swiss"]
[EventCountry "UAE"]
[SourceTitle "playchess.com"]
[Source "ChessBase"]
[SourceQuality "1"]
[TimeControl "5400+30"]

{[%evp 11,75,11,5,5,33,32,43,32,42,45,52,23,26,13,35,22,54,40,51,34,50,31,28,28,70,20,66,71,60,73,83,34,35,35,56,8,53,22,26,7,96,98,121,116,188,180,201,210,207,149,152,153,239,234,445,197,198,197,188,177,177,165,510,512,522,465]} 1. e4 {[%emt 1:31:00]} e5 {[%emt 1:31:00]} 2. Nc3 {[%emt 0:00:30]} Nf6 {[%emt 0:00:30]} 3. Bc4 {[%emt 0:00:30]} Nc6 {[%emt 0:00:30]} 4. d3 {[%emt 0:00:30]} Na5 {[%emt 0:00:30]} 5. Bb3 {[%emt 0:00:30]} Nxb3 {[%emt 0:00:30]} 6. axb3 {[%emt 0:00:30]} d5 {[%emt 0:00:30][%cal Bd7d5,Bd5e4][%mdl 32]} 7. Nf3 {[%emt 0:00:30]} (7. exd5 {looks sharper.} Nxd5 8. Qh5 Nb4 9. Qxe5+ Be7 10. Kd1) 7... Bb4 {[%emt 0:00:30] [#] aiming for ...d4.} 8. O-O {[%emt 0:00:30]} dxe4 {[%emt 0:00:30]} 9. Nxe5 {[%emt 0:00:30] White is slightly better.} Bxc3 {[%emt 0:00:30]} 10. bxc3 {[%emt 0:00:30]} O-O {[%emt 0:00:30]} 11. Bg5 {[%emt 0:00:30][%cal Bc1g5,Bg5h4,Bh4g3,Bg3e5,Be5d4][%mdl 32]} exd3 {[%emt 0:00:30]} 12. Nxd3 {[%emt 0:00:30]} h6 {[%emt 0:00:30]} 13. Bh4 {[%emt 0:00:30]} g5 {[%emt 0:00:30]} 14. Bg3 {[%emt 0:00:30]} Bg4 {[%emt 0:00:30] Prevents Qf3} 15. f3 {[%emt 0:00:30]} Bf5 {[%emt 0:00:30]} 16. Be5 {[%emt 0:00:30]} Nd7 {[%emt 0:00:30]} 17. Bd4 {[%emt 0:00:30]} a5 {[%emt 0:00:30]} 18. c4 {[%emt 0:00:30]} (18. f4 $1 $14) 18... a4 {[%emt 0:00:30]} 19. Rxa4 $14 {[%emt 0:00:30] White is more active.} Rxa4 {[%emt 0:00:30]} 20. bxa4 {[%emt 0:00:30]} Re8 {[%emt 0:00:30]} 21. c5 {[%emt 0:00:30]} (21. a5 $16) 21... Nf8 {[%emt 0:00:30]} 22. Bf2 {[%emt 0:00:30]} Qd7 {[%emt 0:00:30]} 23. Qa1 {[%emt 0:00:30]} (23. a5 $14 {is more appropriate.}) 23... Re2 {[%emt 0:00:30]} (23... Bxd3 $5 24. cxd3 Ra8 $11) 24. a5 {[%emt 0:00:30] Ne5 is the strong threat.} c6 {[%emt 0:00:30]} 25. Nb4 {[%emt 0:00:30]} Re6 {[%emt 0:00:30]} (25... Bxc2 $11 26. a6 bxa6) 26. Rd1 $16 {[%emt 0:00:30]} Qe7 {[%emt 0:00:30]} 27. Qd4 {[%emt 0:00:30]} g4 {[%emt 0:00:30]} 28. Qf4 $18 {[%emt 0:00:30]} Qg5 {[%emt 0:00:30]} 29. Qxg5+ {[%emt 0:00:30]} hxg5 30. fxg4 {[%emt 0:00:30]} Bxg4 {[%emt 0:01:00]} 31. Rd8 {[%emt 0:00:30] [#] Hoping for Rb8.} Re7 {[%emt 0:00:30]} (31... Kg7 $16 {was worth a try.} 32. Rb8 Re7 33. Bd4+ f6) 32. h3 {[%emt 0:00:30]} Be6 {[%emt 0:00:30]} (32... Rd7) 33. Rb8 {[%emt 0:00:30]} (33. Bg3 $142 Rd7 34. Re8) 33... Rd7 {[%emt 0:00:30]} 34. a6 {[%emt 0:00:30]} bxa6 {[%emt 0:00:30]} 35. Nxc6 {[%emt 0:00:30] Threatens to win with Nd4.} Rd1+ {[%emt 0:00:30]} 36. Kh2 {Strongly threatening Nd4.} Kg7 $2 (36... Rd2 37. Bd4 f6) 37. Nd4 {[%emt 0:01:00]} Rf1 {[%emt 0:01:00]} 38. Bg3 {[%emt 0:00:30] Weighted Error Value: White=0.18 (very precise) /Black=0.38.  Mistake:       	White=4     	Black=6      Inaccurate:     	White=2     	Black=4      OK:         	White=14    	Black=11     Best:        	White=2     	Black=1} 1-0

[Event "7th Sharjah Masters 2024"]
[Site "Sharjah"]
[Date "2024.05.18"]
[Round "5.20"]
[White "Sadhwani, Raunak"]
[Black "Horvath, Dominik"]
[Result "1/2-1/2"]
[ECO "D33"]
[WhiteElo "2654"]
[BlackElo "2554"]
[Annotator "TA"]
[PlyCount "55"]
[EventDate "2024.05.13"]
[EventType "swiss"]
[EventCountry "UAE"]
[SourceTitle "playchess.com"]
[Source "ChessBase"]
[SourceQuality "1"]
[TimeControl "5400+30"]

{[%evp 17,55,23,15,15,14,12,15,18,38,14,35,8,54,32,81,72,70,67,57,49,56,50,51,55,62,46,82,82,72,54,65,29,25,13,12,0,0,-12,-9,-23]} 1. c4 {[%emt 1:31:00]} c5 {[%emt 1:31:00]} 2. Nc3 {[%emt 0:00:30]} Nf6 {[%emt 0:00:30]} 3. g3 {[%emt 0:00:30]} Nc6 {[%emt 0:00:30]} 4. Bg2 {[%emt 0:00:30]} e6 {[%emt 0:00:30]} 5. Nf3 {[%emt 0:00:30]} d5 {[%emt 0:00:30]} 6. cxd5 {[%emt 0:00:30]} exd5 {[%emt 0:00:30]} 7. d4 {[%emt 0:00:30]} cxd4 {[%emt 0:00:30]} 8. Nxd4 {[%emt 0:00:30]} Bc5 {[%emt 0:00:30]} 9. Nxc6 {[%emt 0:00:30]} bxc6 {[%emt 0:00:30]} 10. Qa4 {[%emt 0:00:30]} Bd7 {[%emt 0:00:30]} 11. O-O {[%emt 0:00:30]} O-O {[%emt 0:00:30]} 12. Bg5 {[%emt 0:00:30]} Rb8 {[%emt 0:00:30]} 13. Qc2 {[%emt 0:00:30][%cal Oc3d5]} Be7 {[%emt 0:00:30]} 14. Bf4 {[%emt 0:00:30]} Rb6 {[%emt 0:00:30]} (14... Rc8 $11) 15. e4 {[%emt 0:00:30]} Nxe4 {[%emt 0:00:30]} (15... Bg4 $14 {deserves consideration.}) 16. Nxe4 $16 {[%emt 0:00:30]} dxe4 {[%emt 0:00:30]} 17. Bxe4 {[%emt 0:00:30]} h6 {[%emt 0:00:30]} 18. Rad1 {[%emt 0:00:30]} Qc8 {[%emt 0:00:30]} 19. Rfe1 {[%emt 0:00:30] [#] And now Bh7+ would win.} Be6 {[%emt 0:00:30]} 20. b3 {[%emt 0:00:30]} c5 {[%emt 0:00:30]} 21. Be3 {[%emt 0:00:30] White has more active pieces.} Qc7 {[%emt 0:00:30]} 22. Rc1 {[%emt 0:00:30]} Rc8 {[%emt 0:00:30]} 23. Qe2 {[%emt 0:00:30]} Qd7 {[%emt 0:00:30]} 24. Bf3 {[%emt 0:00:30]} a5 {[%emt 0:00:30][%cal Ba7a5,Ba5a4][%mdl 32]} 25. Red1 {[%emt 0:00:30]} Qe8 {[%emt 0:00:30] The position is equal.} 26. Qe1 {[%emt 0:00:30]} a4 {[%emt 0:00:30]} 27. Qa5 {[%emt 0:00:30]} Rb4 {[%emt 0:00:30]} 28. Bd2 {[%emt 0:00:30] Weighted Error Value: White=0.11 (very precise) /Black=0.12 (very precise) .  Mistake:       	---       	Black=2      Inaccurate:     	White=2     	Black=1      OK:         	White=4     	Black=8} ({But not} 28. Bxc5 Rb5 $17) 1/2-1/2

[Event "7th Sharjah Masters 2024"]
[Site "Sharjah"]
[Date "2024.05.18"]
[Round "5.21"]
[White "Gurel, Ediz"]
[Black "Ter-Sahakyan, Samvel"]
[Result "1/2-1/2"]
[ECO "C60"]
[WhiteElo "2578"]
[BlackElo "2652"]
[Annotator "TA"]
[PlyCount "94"]
[EventDate "2024.05.13"]
[EventType "swiss"]
[EventCountry "UAE"]
[SourceTitle "playchess.com"]
[Source "ChessBase"]
[SourceQuality "1"]
[TimeControl "5400+30"]

{[%evp 23,94,4,2,9,14,-7,0,0,0,0,0,0,4,0,0,-4,0,-15,-16,-16,0,0,-9,-8,0,-5,0,-14,-13,-20,-27,-47,-49,-65,-36,-39,-25,-50,-43,-28,-20,-30,72,82,145,137,136,136,133,152,132,166,150,132,126,125,157,14,14,14,32,27,21,0,0,0,0,0,0,0,0,0,8]} 1. e4 {[%emt 1:31:00]} e5 {[%emt 1:31:00]} 2. Nf3 {[%emt 0:00:30]} Nc6 {[%emt 0:00:30]} 3. Bb5 {[%emt 0:00:30]} a6 {[%emt 0:00:30]} 4. Ba4 {[%emt 0:00:30]} Nge7 {[%emt 0:00:30]} 5. O-O {[%emt 0:00:30]} Ng6 {[%emt 0:00:30]} 6. c3 {[%emt 0:00:30] C60: Ruy Lopez: Unusual Black 3rd moves and 3...g6.} d5 {[%emt 0:00:30]} 7. exd5 {[%emt 0:00:30]} Qxd5 {[%emt 0:00:30]} 8. d4 {[%emt 0:00:30]} Bg4 {[%emt 0:00:30]} 9. Bb3 {[%emt 0:00:30]} Bxf3 {[%emt 0:00:30]} 10. Bxd5 {[%emt 0:00:30]} Bxd1 {[%emt 0:00:30]} 11. Rxd1 {[%emt 0:00:30]} O-O-O {[%emt 0:00:30]} 12. Bxf7 {[%emt 0:00:30]} exd4 {[%emt 0:00:30]} 13. Bg5 {[%emt 0:00:30]} Be7 {[%emt 0:00:30]} 14. Bxe7 {[%emt 0:00:30]} Ngxe7 {[%emt 0:00:30]} 15. cxd4 {[%emt 0:00:30]} Nxd4 {[%emt 0:00:30]} 16. Nc3 {[%emt 0:00:30]} Rhf8 {[%emt 0:00:30]} 17. Bc4 {[%emt 0:00:30]} Ng8 $146 {[%emt 0:00:30]} ({Predecessor:} 17... Nec6 18. Rac1 Ne5 19. Bf1 Rf6 20. f3 Rb6 21. b3 g5 22. Kf2 Re6 23. h3 h5 {1-0 Gurel,E (2578)-Kurmangaliyeva,L (2230) Sardinia World op-A 2024 (1)}) 18. f3 {[%emt 0:00:30]} Nf6 {[%emt 0:00:30]} 19. Rac1 {[%emt 0:00:30]} c6 {[%emt 0:00:30]} 20. Re1 {[%emt 0:00:30]} b5 {[%emt 0:00:30]} 21. Bf1 {[%emt 0:00:30]} Rfe8 {[%emt 0:00:30]} 22. Rxe8 Rxe8 {[%emt 0:00:30]} 23. Kf2 {[%emt 0:01:00]} Kc7 {[%emt 0:00:30]} 24. h4 {[%emt 0:00:30]} c5 {[%emt 0:00:30]} 25. g4 {[%emt 0:00:30]} Rf8 {[%emt 0:00:30]} 26. Kg3 {[%emt 0:00:30]} c4 {[%emt 0:00:30]} 27. h5 {[%emt 0:00:30]} h6 {[%emt 0:00:30]} 28. Rd1 {[%emt 0:00:30]} Rd8 {[%emt 0:00:30]} 29. a3 {[%emt 0:00:30]} Kc6 {[%emt 0:00:30]} 30. f4 {[%emt 0:00:30]} Kc5 {[%emt 0:00:30]} 31. Re1 {[%emt 0:00:30]} Nc6 {[%emt 0:00:30]} 32. Re6 {[%emt 0:00:30]} a5 {[%emt 0:00:30]} (32... Re8 $11 {remains equal.} 33. Rxe8 (33. Bxc4 $2 bxc4 34. Na4+ Kd5 $19) 33... Nxe8) 33. Bg2 $16 {[%emt 0:00:30]} Nd4 {[%emt 0:00:30]} ({Black should try} 33... Rd3+ 34. Kh4 Nd4 35. Re5+ Kd6 (35... Kb6 36. g5 $16)) 34. Re5+ $16 {[%emt 0:00:30]} Kb6 {[%emt 0:00:30] [#]} 35. g5 $1 {[%emt 0:00:30]} hxg5 {[%emt 0:00:30]} 36. fxg5 {[%emt 0:00:30]} ({Much weaker is} 36. Rxg5 $6 b4 37. Na4+ Ka6 $11) 36... Nxh5+ {[%emt 0:00:30]} 37. Kg4 {[%emt 0:00:30]} g6 {[%emt 0:00:30] [#]} 38. Be4 $1 {[%emt 0:00:30]} Ng7 {[%emt 0:00:30]} 39. Bxg6 {[%emt 0:00:30]} b4 {[%emt 0:00:30]} 40. Na4+ {[%emt 0:00:30]} (40. axb4 $16 axb4 41. Nd5+ Kb5 42. Ne3+ Ka4 43. Nxc4 (43. Re7 Nde6 $14)) 40... Ka6 $1 $11 {[%emt 0:00:30]} 41. Bf7 {[%emt 0:00:30]} Nb5 {[%emt 0:00:30]} 42. Rc5 {[%emt 0:00:30]} ({Much worse is} 42. Bxc4 Rd4+ 43. Kh3 Rxc4 $17) 42... Rd4+ {[%emt 0:00:30]} 43. Kh3 {[%emt 0:00:30]} Nd6 {[%emt 0:00:30]} 44. g6 {[%emt 0:00:30]} Nxf7 {[%emt 0:00:30]} 45. gxf7 {[%emt 0:00:30]} Rf4 {[%emt 0:00:30]} 46. axb4 {[%emt 0:00:30]} axb4 {[%emt 0:00:30]} 47. Rxc4 {[%emt 0:00:30]} Rxf7 {[%emt 0:00:30]} 1/2-1/2

[Event "7th Sharjah Masters 2024"]
[Site "Sharjah"]
[Date "2024.05.18"]
[Round "5.22"]
[White "Mchedlishvili, Mikheil"]
[Black "Sargsyan, Shant"]
[Result "1/2-1/2"]
[ECO "E05"]
[WhiteElo "2569"]
[BlackElo "2637"]
[Annotator "TA"]
[PlyCount "25"]
[EventDate "2024.05.13"]
[EventType "swiss"]
[EventCountry "UAE"]
[SourceTitle "playchess.com"]
[Source "ChessBase"]
[SourceQuality "1"]
[TimeControl "5400+30"]

{[%evp 20,25,9,14,9,8,16,10]} 1. d4 {[%emt 0:00:08]} d5 {[%emt 0:01:11]} 2. Nf3 {[%emt 0:01:13]} Nf6 {[%emt 0:00:12]} 3. c4 {[%emt 0:00:42]} e6 {[%emt 0:00:11]} 4. g3 {[%emt 0:01:23]} Be7 {[%emt 0:00:44]} 5. Bg2 {[%emt 0:00:40]} O-O {[%emt 0:00:07]} 6. O-O {[%emt 0:01:32]} dxc4 {[%emt 0:00:16]} 7. Qc2 {[%emt 0:01:00]} a6 {[%emt 0:00:08]} 8. a4 {[%emt 0:01:28]} Bd7 {[%emt 0:00:06]} 9. Qxc4 {[%emt 0:01:14]} Bc6 {[%emt 0:00:17]} 10. Bg5 {[%emt 0:00:55]} Nbd7 {[%emt 0:00:25]} 11. Nc3 {[%emt 0:02:26] The position is equal.} h6 {[%emt 0:00:16] [#] White must now prevent ...Nb6.} 12. Bxf6 {[%emt 0:00:49]} Nxf6 {[%emt 0:00:05]} 13. b4 {[%emt 0:03:19] A rather calm draw.} 1/2-1/2

[Event "7th Sharjah Masters 2024"]
[Site "Sharjah"]
[Date "2024.05.18"]
[Round "5.23"]
[White "Mishra, Abhimanyu"]
[Black "Bharath Subramaniyam H"]
[Result "1/2-1/2"]
[ECO "E04"]
[WhiteElo "2634"]
[BlackElo "2545"]
[Annotator "RC"]
[PlyCount "63"]
[EventDate "2024.05.13"]
[EventType "swiss"]
[EventCountry "UAE"]
[SourceTitle "playchess.com"]
[Source "ChessBase"]
[SourceQuality "1"]
[TimeControl "5400+30"]

1. d4 {[%emt 0:00:01]} Nf6 {[%emt 0:00:08]} 2. c4 {[%emt 0:00:08]} e6 {[%emt 0:00:07]} 3. Nf3 {[%emt 0:00:10]} d5 {[%emt 0:00:07]} 4. g3 {[%emt 0:00:16]} dxc4 {[%emt 0:00:54]} 5. Bg2 {[%emt 0:00:33]} Bb4+ {[%emt 0:00:08]} 6. Bd2 {[%emt 0:00:51]} a5 {[%emt 0:00:06]} 7. a3 {[%emt 0:01:43]} Bxd2+ {[%emt 0:00:19]} 8. Nbxd2 {[%emt 0:00:15]} b5 {[%emt 0:00:16]} 9. b3 {[%emt 0:02:09]} cxb3 {[%emt 0:00:16]} 10. Qxb3 {[%emt 0:00:46]} c6 {[%emt 0:00:13]} 11. O-O {[%emt 0:01:53]} O-O {[%emt 0:00:07]} 12. Rfc1 {[%emt 0:01:31]} Bb7 {[%emt 0:00:13]} 13. Qb2 {[%emt 0:00:29]} Nbd7 {[%emt 0:00:08]} 14. Ne1 {[%emt 0:00:37]} e5 {[%emt 0:00:19]} 15. Nd3 {[%emt 0:10:22]} exd4 {[%emt 0:00:30]} 16. Bxc6 {[%emt 0:00:14]} Bxc6 {[%emt 0:00:06]} 17. Rxc6 {[%emt 0:00:05]} Nd5 {[%emt 0:00:08]} 18. Qxd4 {[%emt 0:12:41]} N7f6 {[%emt 0:00:17]} 19. Rc5 {[%emt 0:16:43]} b4 {[%emt 0:06:42]} 20. axb4 {[%emt 0:00:58]} Nxb4 {[%emt 0:00:34]} 21. Qxd8 {[%emt 0:03:29]} Raxd8 {[%emt 0:00:15]} 22. Ra3 {[%emt 0:02:40]} Rfe8 {[%emt 0:18:49]} 23. Kf1 {[%emt 0:03:51]} Nxd3 {[%emt 0:04:53]} 24. Rxd3 {[%emt 0:06:09]} a4 {[%emt 0:18:32]} 25. Rxd8 {[%emt 0:09:01]} Rxd8 {[%emt 0:01:15]} 26. Ra5 {[%emt 0:00:35]} g6 {[%emt 0:03:58]} 27. Nc4 {[%emt 0:01:24]} Rd1+ {[%emt 0:00:23]} 28. Kg2 {[%emt 0:00:05]} Re1 {[%emt 0:01:38]} 29. Kf3 {[%emt 0:05:37]} Ra1 {[%emt 0:01:07]} 30. e4 {[%emt 0:05:00]} Nd7 {[%emt 0:05:15]} 31. Ke3 {[%emt 0:04:18]} Re1+ {[%emt 0:05:18]} 32. Kd3 {[%emt 0:02:50]} 1/2-1/2

[Event "7th Sharjah Masters 2024"]
[Site "Sharjah"]
[Date "2024.05.18"]
[Round "5.24"]
[White "Kadric, Denis"]
[Black "Suleymanli, Aydin"]
[Result "0-1"]
[ECO "C54"]
[WhiteElo "2558"]
[BlackElo "2621"]
[Annotator "TA"]
[PlyCount "88"]
[EventDate "2024.05.13"]
[EventType "swiss"]
[EventCountry "UAE"]
[SourceTitle "playchess.com"]
[Source "ChessBase"]
[SourceQuality "1"]
[TimeControl "5400+30"]

{[%evp 16,88,0,0,0,0,0,0,0,0,0,0,0,0,0,6,14,0,0,-9,-6,-25,0,0,0,0,0,0,0,-8,0,0,-12,-71,-26,-24,-19,-109,-101,-111,-96,-117,-100,-126,-126,-145,-136,-135,-118,-103,-122,-137,-104,-122,-107,-217,-201,-224,-218,-345,-338,-427,-441,-477,-498,-485,-458,-455,-455,-454,-460,-464,-456,-665,-630]} 1. e4 {[%emt 0:00:03]} e5 {[%emt 0:00:05]} 2. Nf3 {[%emt 0:00:04]} Nc6 {[%emt 0:00:04]} 3. Bc4 {[%emt 0:00:04]} Nf6 {[%emt 0:00:04]} 4. d3 {[%emt 0:00:03]} Bc5 {[%emt 0:00:05]} 5. O-O {[%emt 0:00:06]} d6 {[%emt 0:00:05]} 6. c3 {[%emt 0:00:07]} O-O {[%emt 0:00:16]} 7. h3 {[%emt 0:00:36]} h6 {[%emt 0:01:00]} 8. b4 {[%emt 0:01:05]} Bb6 {[%emt 0:00:05]} 9. a4 {[%emt 0:00:03]} a5 {[%emt 0:00:33]} 10. b5 {[%emt 0:00:03]} Ne7 {[%emt 0:00:03]} 11. Nbd2 {[%emt 0:00:03]} Ng6 {[%emt 0:02:22] The position is equal.} 12. d4 {[%emt 0:00:05]} exd4 {[%emt 0:03:17]} 13. cxd4 {[%emt 0:00:09]} d5 {[%emt 0:04:46]} 14. exd5 {[%emt 0:00:11]} Nxd5 {[%emt 0:01:49]} 15. Qb3 {[%emt 0:00:09]} Be6 {[%emt 0:00:18]} 16. Ba3 {[%emt 0:12:47]} Re8 {[%emt 0:00:12]} 17. Rfe1 {[%emt 0:03:18]} Ndf4 {[%emt 0:08:47]} 18. Rad1 {[%emt 0:08:33]} Bxc4 {[%emt 0:05:36]} 19. Rxe8+ {[%emt 0:07:30]} (19. Nxc4 Qd5 20. Ncd2 Qf5) 19... Qxe8 {[%emt 0:00:05]} 20. Nxc4 {[%emt 0:00:01]} Qe6 {[%emt 0:04:17]} 21. Re1 {[%emt 0:03:40]} Qd5 $40 {[%emt 0:00:53][%mdl 128] Black has some attack.} 22. Qc3 {[%emt 0:02:32]} Rd8 {[%emt 0:05:31]} 23. Nxb6 {[%emt 0:07:17]} cxb6 {[%emt 0:01:26]} 24. Re3 {[%emt 0:12:03]} (24. Bc1 $11) 24... Ne6 {[%emt 0:05:32]} (24... Qf5 {keeps more tension.} 25. Qc7 Qc8 26. Qxc8 Rxc8 27. Ne5 Nxe5 28. Rxe5 f6) 25. Bb2 {[%emt 0:00:15]} Ngf4 {[%emt 0:00:57]} 26. Kh2 {[%emt 0:02:24] [#]} (26. Qc2 $1 $11 {remains equal.}) 26... Qd6 $1 $17 {[%emt 0:07:52]} 27. Qa3 {[%emt 0:03:07]} Qxa3 {[%emt 0:00:44]} 28. Rxa3 {[%emt 0:01:32]} Nd5 {[%emt 0:00:27]} 29. Ra1 {[%emt 0:23:12]} Rc8 {[%emt 0:00:42]} 30. Kg1 {[%emt 0:01:25]} Rc2 {[%emt 0:00:55]} 31. Bc1 {[%emt 0:00:03]} f6 {[%emt 0:07:22]} 32. Kf1 {[%emt 0:00:03]} Kf7 {[%emt 0:00:13] Black has more active pieces.} 33. g3 {[%emt 0:04:09]} Ke7 {[%emt 0:09:18]} 34. Ke1 {[%emt 0:03:16]} Nb4 {[%emt 0:02:41] And now ...Nd3+ would win. Excellent horsemanship.} 35. Ba3 {[%emt 0:03:40]} (35. Be3 $17) 35... Rc3 $19 {[%emt 0:00:32]} 36. Ke2 {[%emt 0:00:59]} Kd6 {[%emt 0:01:02]} 37. Bxb4+ {[%emt 0:02:44]} (37. Bc1 $142) 37... axb4 {[%emt 0:00:04][%mdl 4096] Endgame. KRN-KRN} 38. Rb1 {[%emt 0:00:01]} b3 {[%emt 0:00:13] Black is clearly winning.} 39. Ne1 {[%emt 0:01:43]} Kd5 {[%emt 0:00:14]} ({But not} 39... Nxd4+ 40. Kd2 Rc4 41. h4) 40. Ng2 {[%emt 0:00:22]} Nxd4+ {[%emt 0:00:35]} 41. Kd2 {[%emt 0:00:01]} Rc2+ {[%emt 0:03:51]} 42. Kd3 {[%emt 0:00:11]} Rxf2 {[%emt 0:00:13]} 43. Ne3+ {[%emt 0:00:03]} Kc5 {[%emt 0:00:06]} 44. Rc1+ {[%emt 0:00:30] [#]} (44. Rf1 $142 Rxf1 45. Nxf1) 44... Nc2 $1 {[%emt 0:27:18] Weighted Error Value: White=0.27 (precise) /Black=0.06 (flawless) .  Mistake:       	White=5     	---        Inaccurate:     	---       	Black=1      OK:         	White=15    	Black=16     Best:        	White=1     	Black=4      Strong:       	---       	Black=1      Brilliant:      	---       	Black=1} 0-1

[Event "7th Sharjah Masters 2024"]
[Site "Sharjah"]
[Date "2024.05.18"]
[Round "5.25"]
[White "Gledura, Benjamin"]
[Black "Pranav Anand"]
[Result "1/2-1/2"]
[ECO "A07"]
[WhiteElo "2619"]
[BlackElo "2532"]
[Annotator "TA"]
[PlyCount "111"]
[EventDate "2024.05.13"]
[EventType "swiss"]
[EventCountry "UAE"]
[SourceTitle "playchess.com"]
[Source "ChessBase"]
[SourceQuality "1"]
[TimeControl "5400+30"]

{[%evp 47,111,8,10,24,3,2,69,72,61,6,10,23,27,0,0,0,0,0,12,0,25,21,60,48,68,8,8,8,8,4,12,5,25,8,28,8,8,0,0,28,13,8,88,-12,-18,-17,-19,-15,-15,-17,-24,-21,0,0,0,0,0,-8,-8,-8,-8,-8,0,0,0,-5]} 1. Nf3 {[%emt 0:00:05]} Nf6 {[%emt 0:00:20]} 2. g3 {[%emt 0:00:16]} d5 {[%emt 0:00:06]} 3. Bg2 {[%emt 0:00:08]} e6 {[%emt 0:00:07]} 4. O-O {[%emt 0:00:32]} Be7 {[%emt 0:00:07]} 5. d3 {[%emt 0:00:48]} O-O {[%emt 0:00:36]} 6. Bf4 {[%emt 0:01:07] A07: Réti Opening: New York and Capablanca Systems.} b5 {[%emt 0:08:54]} 7. a3 $146 {[%emt 0:16:41]} ({Predecessor:} 7. Nbd2 Nbd7 8. c4 c6 9. a4 Qe8 10. Re1 Nh5 11. Be5 Nxe5 12. Nxe5 Bf6 13. Nef3 Bxb2 14. Rb1 Bf6 15. cxd5 exd5 16. e4 {½-½ Kapsia,V (1490)-Hosek,M (1843) Morava-ch U16 2008 (1)}) 7... Bb7 {[%emt 0:02:27]} 8. Nc3 {[%emt 0:02:57]} a6 {[%emt 0:01:59]} 9. e4 {[%emt 0:04:39]} c5 {[%emt 0:03:37]} 10. e5 {[%emt 0:09:11]} Nfd7 {[%emt 0:01:39]} 11. Re1 {[%emt 0:00:24]} Nc6 {[%emt 0:03:17]} 12. h4 {[%emt 0:00:17]} b4 {[%emt 0:04:06]} 13. axb4 {[%emt 0:06:00]} Nxb4 {[%emt 0:00:07]} 14. Qd2 {[%emt 0:06:06]} Qb6 {[%emt 0:10:45]} 15. h5 {[%emt 0:03:15]} Rfc8 {[%emt 0:03:38]} 16. h6 {[%emt 0:02:10]} g6 {[%emt 0:00:02]} 17. Bg5 {[%emt 0:07:24]} Bf8 {[%emt 0:06:16]} 18. Nh2 {[%emt 0:07:40]} Nc6 {[%emt 0:07:02]} 19. Ng4 {[%emt 0:00:19]} Nd4 {[%emt 0:00:44]} 20. Ra2 {[%emt 0:01:58]} Nf5 {[%emt 0:03:10]} 21. b3 {[%emt 0:09:26]} Bc6 {[%emt 0:01:27]} 22. Rea1 {[%emt 0:02:30]} Qb4 {[%emt 0:06:53]} 23. Bf4 {[%emt 0:00:27]} Qb7 {[%emt 0:02:42]} 24. Ne2 {[%emt 0:01:46]} d4 {[%emt 0:01:20]} 25. Bxc6 {[%emt 0:00:53]} Qxc6 {[%emt 0:00:01]} 26. Qd1 {[%emt 0:01:25]} Be7 {[%emt 0:02:20]} (26... Ne7 $11) 27. Kh2 $14 {[%emt 0:01:20]} Qd5 {[%emt 0:04:29]} 28. Qh1 {[%emt 0:04:45]} (28. Rxa6 g5 29. Bd2 Nxe5 30. Nxe5 Rxa6 31. Rxa6 Qxe5) (28. Ng1 $1 $14) 28... g5 $1 $11 {[%emt 0:00:38]} 29. Qxd5 {[%emt 0:00:10]} (29. Rxa6 $2 Qxh1+ 30. Kxh1 Rxa6 31. Rxa6 Nb8 $17 (31... gxf4 $2 32. Nxf4 Nb8 33. Rb6 $19)) 29... exd5 {[%emt 0:00:01]} 30. Rxa6 {[%emt 0:00:13]} Rxa6 {[%emt 0:05:27]} 31. Rxa6 {[%emt 0:00:01]} gxf4 {[%emt 0:02:53]} 32. Nxf4 {[%emt 0:00:02]} Nb8 {[%emt 0:03:53]} 33. Rb6 {[%emt 0:01:18]} Nc6 {[%emt 0:00:31]} (33... Rd8 $5) 34. Nxd5 {[%emt 0:00:07]} Bf8 {[%emt 0:02:04]} 35. Kg2 {[%emt 0:01:09]} Kh8 {[%emt 0:00:59]} 36. Kf3 {[%emt 0:01:12]} ({Better is} 36. Rb7 $1 $14) 36... Nxh6 $11 {[%emt 0:01:59]} 37. Nxh6 {[%emt 0:00:07]} Bxh6 {[%emt 0:00:04]} 38. Ke4 {[%emt 0:00:12]} Bf8 {[%emt 0:00:37]} 39. Rb7 {[%emt 0:00:24]} Kg7 {[%emt 0:04:00]} (39... Re8 $5 40. f4 $8 (40. Rxf7 $2 Rxe5+ 41. Kf3 Be7 $19) 40... Kg7 $11) 40. f4 {[%emt 0:00:39]} Kg6 {[%emt 0:03:12]} 41. g4 {[%emt 0:01:27]} Kg7 {[%emt 0:01:39]} 42. Rd7 {[%emt 0:05:09]} (42. f5 $5 Re8 $8 43. e6 $11) 42... Nb8 $1 {[%emt 0:00:43]} 43. Ra7 {[%emt 0:00:57]} (43. Rb7 $5 Nc6 $8 44. Rd7 $14) 43... Nc6 {[%emt 0:00:07]} 44. Rb7 {[%emt 0:00:24]} Kg6 {[%emt 0:00:49]} (44... h6 $11 {remains equal.}) 45. f5+ {[%emt 0:01:34]} (45. Nf6 $16 {aiming for f5+.} Kg7 (45... Be7 46. Nd5 $16) 46. f5) 45... Kg5 $1 $11 {[%emt 0:00:07]} 46. Nf6 $1 {[%emt 0:00:10]} Bg7 {[%emt 0:00:51]} ({And not} 46... Be7 47. Nxh7+ (47. Nd5 $2 Re8 $19) 47... Kh6 (47... Kxg4 $2 {too greedy.} 48. f6 $18) 48. f6 Kxh7 49. fxe7 $16) 47. Nxh7+ {[%emt 0:02:17]} Kh6 $1 {[%emt 0:01:33]} 48. Nf6 {[%emt 0:01:11]} Nxe5 {[%emt 0:00:51]} 49. Kxe5 {[%emt 0:00:56]} Re8+ {[%emt 0:00:00]} 50. Kd5 {[%emt 0:00:42]} Bxf6 {[%emt 0:00:02]} 51. Rxf7 {[%emt 0:00:08]} Re5+ {[%emt 0:02:10]} 52. Kc4 {[%emt 0:00:58]} Kg5 {[%emt 0:00:01]} 53. Rf8 {[%emt 0:00:24]} Re2 {[%emt 0:01:17]} 54. Rg8+ {[%emt 0:00:01]} Kf4 {[%emt 0:00:04]} 55. Kxc5 {[%emt 0:00:11]} Rxc2+ {[%emt 0:00:16]} 56. Kd5 {[%emt 0:01:40]} 1/2-1/2